bitfinex/quotes_BTCUSD_20240918
["timestamp","ask_amount","ask_price","bid_price","bid_amount"]
[1726670193108,0.00164,59654.0,59652.0,0.167638]
[1726670193362,0.169273,59654.0,59650.0,0.167643]
[1726670193571,0.173273,59654.0,59650.0,0.167643]
[1726670193832,0.169273,59654.0,59650.0,0.167643]
[1726670194271,0.169273,59654.0,59644.0,0.335321]
[1726670194272,0.335284,59651.0,59644.0,0.335321]
[1726670194496,0.335284,59651.0,59646.0,0.167655]
[1726670194497,0.167646,59650.0,59646.0,0.167655]
[1726670194717,0.335298,59649.0,59642.0,0.335329]
[1726670194977,0.167654,59647.0,59642.0,0.335329]
[1726670195223,0.167653,59647.0,59644.0,0.16766]
[1726670195427,0.16765,59648.0,59644.0,0.16766]
[1726670195641,0.01458265,59646.0,59645.0,0.167658]
[1726670195854,0.01457167,59646.0,59644.0,0.167661]
[1726670196081,0.167647,59649.0,59645.0,0.167658]
[1726670196296,0.49834267,59650.0,59643.0,0.335327]
[1726670196297,0.01457167,59645.0,59644.0,0.167661]
[1726670196521,0.167651,59648.0,59645.0,0.167658]
[1726670196979,0.167663,59644.0,59640.0,0.16767]
[1726670197204,0.16766,59645.0,59629.0,0.1]
[1726670197425,0.16305367,59647.0,59641.0,0.335334]
[1726670197666,0.16305367,59647.0,59642.0,0.335331]
[1726670197873,0.16305367,59647.0,59644.0,0.167659]
[1726670198570,0.190642,59651.0,59644.0,0.335319]
[1726670198798,0.16305367,59650.0,59633.0,0.00082]
[1726670199078,0.46764,59654.0,59637.0,0.23327038]
[1726670199303,0.46764,59654.0,59653.0,0.167636]
[1726670199537,0.46764,59654.0,59653.0,0.83818]
[1726670199538,0.00164,59654.0,59653.0,0.83818]
[1726670199758,0.00164,59654.0,59653.0,1.173452]
[1726670200239,0.01464,59654.0,59653.0,1.173452]
[1726670200484,0.01464,59654.0,59653.0,0.83818]
[1726670200724,0.00164,59654.0,59651.0,0.167639]
[1726670201148,0.00164,59654.0,59653.0,0.167636]
[1726670201367,0.00164,59654.0,59652.0,0.167637]
[1726670201614,0.00164,59654.0,59651.0,0.335282]
[1726670201826,0.00164,59654.0,59653.0,0.502908]
[1726670202043,0.00164,59654.0,59653.0,0.83818]
[1726670203201,0.00464,59654.0,59653.0,0.83818]
[1726670203436,0.00164,59654.0,59653.0,0.83818]
[1726670204772,0.00164,59654.0,59653.0,0.502908]
[1726670204994,0.00164,59654.0,59653.0,0.83818]
[1726670205992,0.00164,59654.0,59653.0,0.502908]
[1726670206634,0.01376485,59654.0,59653.0,0.83818]
[1726670206867,0.00164,59654.0,59653.0,0.83818]
[1726670207005,0.00164,59654.0,59653.0,0.502908]
[1726670207539,0.00164,59654.0,59644.0,0.335321]
[1726670207704,0.00164,59654.0,59653.0,0.167636]
[1726670208341,0.00164,59654.0,59653.0,0.502908]
[1726670208544,0.00164,59654.0,59653.0,0.167636]
[1726670209834,0.01388253,59654.0,59648.0,0.335298]
[1726670210100,0.167665,59643.0,59639.0,0.167675]
[1726670210326,0.167665,59643.0,59633.0,0.00082]
[1726670210327,0.15569849,59647.0,59633.0,0.00082]
[1726670210718,0.335368,59636.0,59633.0,0.00082]
[1726670210949,0.15569849,59638.0,59633.0,0.00082]
[1726670210950,0.33074067,59635.0,59633.0,0.00082]
[1726670211174,0.167689,59634.0,59633.0,0.00082]
[1726670211398,1.00638802,59634.0,59633.0,0.00082]
[1726670211880,0.51531053,59634.0,59633.0,0.00082]
[1726670212103,0.01224253,59634.0,59633.0,0.00082]
[1726670212981,0.335356,59638.0,59633.0,0.00082]
[1726670213217,0.01224253,59634.0,59633.0,0.00082]
[1726670213445,0.006,59634.0,59633.0,0.00082]
[1726670213662,0.01202544,59634.0,59633.0,0.00082]
[1726670213872,0.167684,59636.0,59633.0,0.00082]
[1726670214092,0.02002544,59634.0,59633.0,0.00082]
[1726670214309,0.01202544,59635.0,59633.0,0.00082]
[1726670214569,0.0939,59642.0,59633.0,0.00082]
[1726670214798,0.01202544,59634.0,59633.0,0.00082]
[1726670215028,0.167689,59634.0,59633.0,0.00082]
[1726670215262,0.51509344,59634.0,59633.0,0.00082]
[1726670215491,0.85047244,59634.0,59633.0,0.00082]
[1726670215708,0.85647244,59634.0,59633.0,0.00082]
[1726670215987,0.52109344,59634.0,59633.0,0.00082]
[1726670216223,0.51509344,59634.0,59633.0,0.00082]
[1726670216467,0.18871444,59634.0,59633.0,0.00082]
[1726670216707,0.02102544,59634.0,59633.0,0.168512]
[1726670216936,0.009,59634.0,59633.0,0.503896]
[1726670217222,0.02102544,59634.0,59633.0,0.503896]
[1726670217461,0.009,59634.0,59633.0,0.503896]
[1726670217688,0.02089402,59634.0,59633.0,0.168512]
[1726670217921,0.009,59634.0,59633.0,0.168512]
[1726670218164,0.009,59634.0,59633.0,0.00082]
[1726670218401,0.02089402,59634.0,59633.0,0.00082]
[1726670218636,0.009,59634.0,59633.0,0.00082]
[1726670218858,0.52396202,59634.0,59633.0,0.00082]
[1726670219116,0.51496202,59634.0,59633.0,0.00082]
[1726670219810,0.52196202,59634.0,59633.0,0.00082]
[1726670220061,0.17958302,59634.0,59633.0,0.00082]
[1726670220296,0.01189402,59634.0,59633.0,0.00082]
[1726670220529,0.009,59634.0,59633.0,0.503896]
[1726670221032,0.02089402,59634.0,59633.0,0.168512]
[1726670221247,0.009,59634.0,59633.0,0.00082]
[1726670221476,0.02089402,59634.0,59633.0,0.00082]
[1726670221702,0.02089402,59634.0,59633.0,0.168512]
[1726670222635,0.02089402,59634.0,59633.0,0.83928]
[1726670223111,0.009,59634.0,59633.0,1.174664]
[1726670223885,0.009,59634.0,59624.0,0.07519113]
[1726670223886,0.1747,59633.0,59622.0,0.000819]
[1726670224113,0.75983402,59623.0,59622.0,0.000819]
[1726670224341,1.35092869,59623.0,59622.0,0.000819]
[1726670224570,1.79831787,59623.0,59622.0,0.000819]
[1726670224804,1.46287687,59623.0,59622.0,0.000819]
[1726670225286,1.79831787,59623.0,59622.0,0.000819]
[1726670225526,1.46287687,59623.0,59622.0,0.000819]
[1726670225776,1.79831787,59623.0,59622.0,0.000819]
[1726670226571,1.81231787,59623.0,59622.0,0.000819]
[1726670226829,2.16375887,59623.0,59619.0,0.000819]
[1726670227104,1.31429567,59620.0,59619.0,0.000819]
[1726670227334,1.88342569,59620.0,59619.0,0.000819]
[1726670227836,1.89695504,59620.0,59619.0,0.000819]
[1726670228088,1.89695504,59620.0,59610.0,0.00135]
[1726670228089,1.65955102,59611.0,59610.0,0.00135]
[1726670228317,2.15811269,59611.0,59610.0,0.00135]
[1726670228582,2.40523483,59611.0,59610.0,0.00135]
[1726670228819,2.54093483,59611.0,59610.0,0.00135]
[1726670229047,1.96975381,59611.0,59610.0,0.00135]
[1726670229746,1.98375381,59611.0,59610.0,0.00135]
[1726670229983,1.96975381,59611.0,59610.0,0.00135]
[1726670230472,2.32126181,59611.0,59610.0,0.00135]
[1726670230699,2.31926181,59611.0,59610.0,0.00135]
[1726670231153,2.31533101,59611.0,59610.0,0.00135]
[1726670231968,1.97982301,59611.0,59610.0,0.00135]
[1726670232216,1.09973781,59611.0,59610.0,0.00135]
[1726670232445,1.08573781,59611.0,59610.0,0.00135]
[1726670232673,1.01327279,59611.0,59610.0,0.00217]
[1726670232901,0.69176479,59611.0,59610.0,0.00217]
[1726670233120,0.67776479,59611.0,59610.0,0.00217]
[1726670233565,0.69176479,59611.0,59610.0,0.00217]
[1726670233795,0.70076479,59611.0,59610.0,0.00217]
[1726670234029,1.26994581,59611.0,59610.0,0.00217]
[1726670234263,1.61945381,59611.0,59610.0,0.00217]
[1726670234499,2.27657221,59611.0,59610.0,0.00217]
[1726670234727,1.81895381,59611.0,59610.0,0.00217]
[1726670234960,2.18446181,59611.0,59610.0,0.00217]
[1726670235197,2.47813483,59611.0,59610.0,0.00082]
[1726670235431,2.47813483,59611.0,59606.0,0.000819]
[1726670235432,1.327358,59607.0,59606.0,0.000819]
[1726670235656,1.82594267,59607.0,59606.0,0.000819]
[1726670235890,1.47158697,59607.0,59606.0,0.000819]
[1726670237061,1.15005597,59607.0,59606.0,0.000819]
[1726670237290,1.03605597,59607.0,59606.0,0.000819]
[1726670238981,1.05005597,59607.0,59606.0,0.000819]
[1726670239476,1.38558697,59607.0,59606.0,0.000819]
[1726670239707,1.05005597,59607.0,59606.0,0.000819]
[1726670243488,0.71452497,59607.0,59606.0,0.000819]
[1726670244208,1.05005597,59607.0,59606.0,0.000819]
[1726670246087,0.37899397,59607.0,59606.0,0.000819]
[1726670246312,0.0251753,59607.0,59606.0,0.168587]
[1726670246560,0.0251753,59607.0,59606.0,0.839659]
[1726670246816,0.0251753,59607.0,59606.0,1.175195]
[1726670246817,0.014,59607.0,59606.0,1.175195]
[1726670247781,0.014,59607.0,59606.0,0.839659]
[1726670248012,0.014,59607.0,59606.0,0.000819]
[1726670248239,0.24767302,59607.0,59606.0,0.000819]
[1726670248475,0.25894743,59607.0,59606.0,0.000819]
[1726670248695,0.01127441,59607.0,59606.0,0.168587]
[1726670248927,0.02327441,59607.0,59606.0,0.504123]
[1726670249139,0.012,59607.0,59606.0,0.504123]
[1726670249368,0.02327441,59607.0,59606.0,0.504123]
[1726670250091,0.02327441,59607.0,59606.0,0.839659]
[1726670250320,0.012,59607.0,59606.0,0.839659]
[1726670253514,0.012,59607.0,59606.0,0.168587]
[1726670253747,0.012,59607.0,59606.0,0.000819]
[1726670253748,0.02327441,59607.0,59606.0,0.000819]
[1726670253977,0.19103941,59607.0,59606.0,0.000819]
[1726670254231,0.02327441,59607.0,59606.0,0.000819]
[1726670254474,0.02327441,59607.0,59606.0,0.504123]
[1726670255863,0.0230725,59607.0,59606.0,0.839659]
[1726670256315,0.01179809,59607.0,59606.0,0.839659]
[1726670257310,0.01179809,59607.0,59606.0,0.504123]
[1726670258093,0.01179809,59607.0,59606.0,0.839659]
[1726670258868,0.001642,59610.0,59609.0,0.167759]
[1726670259110,0.001642,59610.0,59606.0,0.504123]
[1726670259111,0.008,59607.0,59606.0,0.504123]
[1726670259375,0.01292487,59610.0,59609.0,0.167759]
[1726670259661,0.001642,59610.0,59609.0,0.503278]
[1726670260656,0.001642,59610.0,59609.0,1.51366967]
[1726670261019,0.001642,59610.0,59609.0,2.77250769]
[1726670261186,0.001642,59610.0,59609.0,2.93396769]
[1726670261449,0.001642,59610.0,59609.0,3.11104242]
[1726670261710,0.001642,59610.0,59609.0,2.70044869]
[1726670261947,0.001642,59610.0,59609.0,2.71065691]
[1726670262277,0.009642,59610.0,59609.0,3.04617591]
[1726670262484,0.466,59629.0,59628.0,1.173942]
[1726670262720,0.25158921,59634.0,59633.0,0.83846]
[1726670262957,0.633562,59644.0,59640.0,0.167671]
[1726670263196,0.16305367,59644.0,59642.0,0.167664]
[1726670263456,0.0947,59650.0,59629.0,0.0815]
[1726670263703,0.16305367,59650.0,59630.0,0.16640699]
[1726670263954,0.16305367,59650.0,59647.0,0.335305]
[1726670264204,0.33069967,59650.0,59646.0,0.167654]
[1726670264463,0.33069967,59650.0,59644.0,0.335319]
[1726670264703,0.39672669,59649.0,59630.0,0.16305367]
[1726670264942,0.167653,59647.0,59643.0,0.167663]
[1726670265170,0.39672669,59649.0,59640.0,0.335343]
[1726670265171,0.56437569,59649.0,59644.0,0.167659]
[1726670265407,0.167654,59647.0,59642.0,0.167664]
[1726670265627,0.16766,59645.0,59641.0,0.167668]
[1726670265852,0.335303,59648.0,59642.0,0.167665]
[1726670266094,0.39672669,59649.0,59643.0,0.167662]
[1726670266315,0.167651,59648.0,59643.0,0.167662]
[1726670266539,0.014,59644.0,59643.0,0.167662]
[1726670266761,0.502953,59648.0,59642.0,0.167666]
[1726670266985,0.167652,59648.0,59643.0,0.167663]
[1726670267214,0.167652,59648.0,59630.0,0.16305367]
[1726670267215,0.013,59645.0,59630.0,0.16305367]
[1726670267639,0.013,59645.0,59642.0,0.167664]
[1726670267860,0.013,59645.0,59635.0,0.335368]
[1726670267861,0.013,59645.0,59643.0,0.167662]
[1726670268082,0.013,59645.0,59644.0,0.167661]
[1726670268760,0.167659,59645.0,59641.0,0.167668]
[1726670269003,0.34271467,59644.0,59640.0,0.16767]
[1726670269233,0.167664,59643.0,59639.0,0.167673]
[1726670269469,0.190639,59652.0,59648.0,0.167649]
[1726670269701,0.16305367,59652.0,59637.0,0.23367302]
[1726670269934,0.16305367,59652.0,59651.0,0.167641]
[1726670270424,0.335246,59658.0,59642.0,0.23367302]
[1726670270663,0.19854,59660.0,59653.0,0.167636]
[1726670270664,0.00164,59660.0,59653.0,0.167636]
[1726670270889,0.00164,59660.0,59653.0,0.502908]
[1726670271385,0.169256,59660.0,59653.0,0.502908]
[1726670271604,0.00164,59660.0,59653.0,0.502908]
[1726670272262,0.169258,59660.0,59653.0,0.502908]
[1726670272491,0.00964,59654.0,59653.0,0.502908]
[1726670272977,0.00964,59654.0,59653.0,0.83818]
[1726670273206,0.00964,59654.0,59653.0,0.502908]
[1726670273654,0.00964,59654.0,59653.0,0.167636]
[1726670273880,0.00964,59654.0,59653.0,0.502908]
[1726670275539,0.00964,59654.0,59652.0,0.167638]
[1726670275780,0.00964,59654.0,59636.0,0.335363]
[1726670275997,0.01211683,59653.0,59650.0,0.335285]
[1726670277412,0.01211683,59653.0,59652.0,1.173469]
[1726670277638,0.01211683,59653.0,59652.0,1.40714202]
[1726670277903,0.00964,59654.0,59653.0,1.173452]
[1726670278135,0.00964,59654.0,59653.0,1.33650567]
[1726670278360,0.00944,59654.0,59653.0,2.74291767]
[1726670278604,0.00144,59654.0,59653.0,2.84491767]
[1726670279047,0.00144,59654.0,59653.0,2.64462067]
[1726670279512,0.00164,59660.0,59659.0,1.74424402]
[1726670279513,0.00154,59660.0,59659.0,1.74424402]
[1726670279737,0.00144,59660.0,59659.0,2.24253569]
[1726670279970,0.00164,59665.0,59664.0,1.608445]
[1726670280224,0.00164,59665.0,59664.0,3.17274569]
[1726670280454,0.00164,59665.0,59664.0,3.25114569]
[1726670281134,0.00164,59665.0,59664.0,3.24914569]
[1726670281368,0.00164,59665.0,59664.0,2.08357169]
[1726670282275,0.00164,59665.0,59664.0,2.09350164]
[1726670282507,0.00264,59665.0,59664.0,2.09850164]
[1726670282725,0.00164,59665.0,59664.0,2.09350164]
[1726670282956,0.00264,59665.0,59664.0,2.09850164]
[1726670284813,0.00264,59665.0,59664.0,0.843025]
[1726670285265,0.00164,59665.0,59664.0,0.838025]
[1726670285741,0.170242,59665.0,59664.0,0.004]
[1726670286199,0.51834921,59665.0,59664.0,0.004]
[1726670286430,0.51834921,59665.0,59655.0,0.167628]
[1726670286431,0.16762,59659.0,59655.0,0.167628]
[1726670286661,0.335235,59660.0,59651.0,0.335282]
[1726670286892,0.092,59664.0,59652.0,0.167637]
[1726670286893,0.01281268,59658.0,59652.0,0.167637]
[1726670287117,0.335241,59659.0,59652.0,0.167636]
[1726670287382,0.167648,59649.0,59644.0,0.167658]
[1726670287623,0.335274,59653.0,59634.0,0.16305367]
[1726670287849,0.167647,59650.0,59636.0,0.335365]
[1726670288108,0.16305367,59653.0,59644.0,0.16766]
[1726670288109,0.34778519,59652.0,59644.0,0.16766]
[1726670288344,0.16305367,59653.0,59649.0,0.167646]
[1726670288599,0.01250319,59651.0,59647.0,0.502952]
[1726670288814,0.03,59662.0,59634.0,0.16305367]
[1726670288815,0.01250319,59652.0,59650.0,0.335283]
[1726670289041,0.33523,59661.0,59641.0,0.23367302]
[1726670289042,0.167614,59661.0,59656.0,0.167626]
[1726670289264,0.092,59664.0,59656.0,0.167627]
[1726670289265,0.16305367,59660.0,59656.0,0.167627]
[1726670289499,0.167619,59659.0,59655.0,0.167628]
[1726670289970,0.17531664,59660.0,59657.0,0.167622]
[1726670289971,0.16305367,59660.0,59657.0,0.167622]
[1726670290200,0.01226297,59658.0,59655.0,0.167629]
[1726670290429,0.01226297,59658.0,59653.0,0.335272]
[1726670290430,0.01229292,59659.0,59656.0,0.167627]
[1726670290713,0.33067067,59660.0,59655.0,0.335258]
[1726670290714,0.01229399,59657.0,59655.0,0.335258]
[1726670290941,0.17705367,59660.0,59656.0,0.167627]
[1726670291184,0.014,59660.0,59659.0,0.838095]
[1726670291910,0.014,59660.0,59659.0,0.502857]
[1726670292154,0.169243,59665.0,59661.0,0.167612]
[1726670292612,0.00164,59665.0,59664.0,0.167605]
[1726670292844,0.00164,59665.0,59662.0,0.502826]
[1726670293079,0.00164,59665.0,59661.0,0.167611]
[1726670293336,0.00164,59665.0,59658.0,0.335244]
[1726670293337,0.00164,59665.0,59662.0,0.16761]
[1726670293804,0.023,59663.0,59651.0,0.167641]
[1726670294038,0.023,59663.0,59649.0,0.335289]
[1726670294039,0.335245,59658.0,59649.0,0.335289]
[1726670294299,0.167623,59658.0,59653.0,0.167634]
[1726670294532,0.167623,59658.0,59638.0,1.00576639]
[1726670294533,0.167623,59658.0,59652.0,0.335274]
[1726670294773,0.167623,59658.0,59654.0,0.167632]
[1726670295972,0.16305367,59658.0,59641.0,0.23367302]
[1726670296209,0.861152,59655.0,59654.0,0.001]
[1726670296421,0.167626,59657.0,59654.0,0.001]
[1726670296642,0.16763,59655.0,59654.0,0.001]
[1726670296903,0.33525,59657.0,59654.0,0.001]
[1726670297125,0.167629,59656.0,59652.0,0.167638]
[1726670297599,0.167626,59657.0,59653.0,0.167635]
[1726670297826,0.16305367,59656.0,59646.0,0.167654]
[1726670298052,0.16305367,59656.0,59640.0,0.335344]
[1726670298053,0.167639,59652.0,59640.0,0.335344]
[1726670298301,0.16305367,59656.0,59640.0,0.335344]
[1726670298302,0.16305367,59656.0,59648.0,0.167648]
[1726670298492,0.167639,59652.0,59648.0,0.167648]
[1726670298777,0.167638,59653.0,59648.0,0.167649]
[1726670299004,0.167645,59650.0,59646.0,0.167654]
[1726670299473,0.335303,59648.0,59642.0,0.167666]
[1726670299716,0.23367302,59644.0,59631.0,0.33539]
[1726670299976,0.16305367,59647.0,59625.0,0.335429]
[1726670299977,0.23367302,59638.0,59625.0,0.335429]
[1726670300237,0.002,59648.0,59625.0,0.335429]
[1726670300238,0.1677,59630.0,59625.0,0.167714]
[1726670300478,0.16305367,59637.0,59626.0,0.33542]
[1726670300479,0.17524687,59637.0,59626.0,0.33542]
[1726670300723,0.335347,59640.0,59631.0,0.335395]
[1726670300969,0.01218871,59636.0,59633.0,0.335383]
[1726670301218,0.01218871,59636.0,59627.0,0.335417]
[1726670301219,0.0812,59649.0,59627.0,0.335417]
[1726670301458,0.0812,59649.0,59641.0,0.167668]
[1726670301459,0.502968,59646.0,59641.0,0.167668]
[1726670301677,0.167657,59646.0,59634.0,0.335377]
[1726670301920,0.167657,59646.0,59642.0,0.167666]
[1726670302194,0.007,59644.0,59642.0,0.167666]
[1726670302377,0.167656,59646.0,59642.0,0.167666]
[1726670302668,0.167656,59646.0,59640.0,0.335343]
[1726670302669,0.181656,59646.0,59640.0,0.335343]
[1726670302882,0.16766,59645.0,59640.0,0.167671]
[1726670303122,0.16766,59645.0,59641.0,0.167669]
[1726670303642,0.349314,59646.0,59639.0,0.167673]
[1726670303643,0.167665,59643.0,59639.0,0.167673]
[1726670303882,0.167677,59639.0,59629.0,0.00082]
[1726670304137,0.167677,59639.0,59635.0,0.167686]
[1726670304651,0.33072267,59642.0,59637.0,0.335359]
[1726670304925,0.16305367,59642.0,59636.0,0.167681]
[1726670305149,0.16305367,59642.0,59637.0,0.16768]
[1726670305369,0.49839267,59642.0,59637.0,0.16768]
[1726670305595,0.007,59639.0,59637.0,0.16768]
[1726670305818,0.16305367,59642.0,59638.0,0.167678]
[1726670306071,0.33072067,59642.0,59638.0,0.167677]
[1726670306295,0.335324,59644.0,59640.0,0.16767]
[1726670306296,0.167662,59644.0,59640.0,0.16767]
[1726670306519,0.167662,59644.0,59641.0,0.167669]
[1726670306748,0.011,59642.0,59641.0,0.167669]
[1726670307214,0.011,59642.0,59641.0,0.503008]
[1726670308166,0.167662,59644.0,59638.0,0.335354]
[1726670308395,0.011,59642.0,59638.0,0.335354]
[1726670308626,0.01201945,59643.0,59642.0,0.167667]
[1726670308871,0.16305367,59646.0,59644.0,0.167661]
[1726670309114,0.007,59642.0,59641.0,0.503008]
[1726670309355,0.007,59642.0,59640.0,0.00082]
[1726670309356,0.16766,59645.0,59642.0,0.167667]
[1726670309599,0.49836467,59646.0,59640.0,0.00082]
[1726670309600,0.009,59642.0,59640.0,0.00082]
[1726670309837,0.009,59642.0,59641.0,0.167669]
[1726670310334,0.009,59642.0,59640.0,0.00082]
[1726670310561,0.176667,59642.0,59640.0,0.00082]
[1726670310794,0.009,59642.0,59640.0,0.00082]
[1726670311084,1.45803967,59641.0,59640.0,0.00082]
[1726670311556,0.78736167,59641.0,59640.0,0.00082]
[1726670311784,0.42902267,59641.0,59640.0,0.00082]
[1726670312008,0.76436167,59641.0,59640.0,0.00082]
[1726670312962,0.77836167,59641.0,59640.0,0.00082]
[1726670313209,0.76436167,59641.0,59640.0,0.00082]
[1726670313465,0.23367302,59646.0,59640.0,0.00082]
[1726670313683,0.167641,59651.0,59644.0,0.335318]
[1726670313938,0.16764,59652.0,59648.0,0.16765]
[1726670314183,0.23367302,59656.0,59645.0,0.335314]
[1726670314402,0.23367302,59656.0,59640.0,0.00082]
[1726670314403,0.33528,59652.0,59640.0,0.00082]
[1726670314644,0.23367302,59656.0,59640.0,0.00082]
[1726670314895,0.01192773,59651.0,59645.0,0.335316]
[1726670315135,0.335222,59662.0,59640.0,0.00082]
[1726670315375,0.09654,59665.0,59659.0,0.335238]
[1726670315622,0.00164,59665.0,59659.0,0.167619]
[1726670315837,0.16761,59663.0,59659.0,0.167619]
[1726670316293,0.167608,59663.0,59658.0,0.16762]
[1726670316538,0.167609,59663.0,59658.0,0.167621]
[1726670316774,0.167609,59663.0,59658.0,0.16762]
[1726670316994,0.167613,59661.0,59657.0,0.167624]
[1726670317270,0.335222,59662.0,59656.0,0.167626]
[1726670317504,0.23531302,59665.0,59644.0,0.10568784]
[1726670317736,0.23531302,59665.0,59659.0,0.502857]
[1726670317980,0.40291602,59665.0,59659.0,0.502857]
[1726670318196,0.23531302,59665.0,59659.0,0.167619]
[1726670318438,0.23531302,59665.0,59648.0,0.335295]
[1726670318439,0.00164,59665.0,59648.0,0.335295]
[1726670318661,0.348874,59660.0,59652.0,0.335275]
[1726670318929,0.348874,59660.0,59654.0,0.335263]
[1726670318930,0.181257,59660.0,59654.0,0.335263]
[1726670319185,0.16762,59659.0,59654.0,0.167631]
[1726670319419,0.169257,59660.0,59655.0,0.167628]
[1726670319668,0.169257,59660.0,59656.0,0.167627]
[1726670319927,0.181257,59660.0,59656.0,0.167627]
[1726670320117,0.169257,59660.0,59656.0,0.167627]
[1726670320436,0.01364,59660.0,59657.0,0.167623]
[1726670321115,0.01364,59660.0,59656.0,0.167627]
[1726670321402,0.01364,59660.0,59652.0,0.335277]
[1726670321821,0.01364,59660.0,59653.0,0.335271]
[1726670322087,0.01364,59660.0,59648.0,0.335299]
[1726670322339,0.00164,59660.0,59659.0,0.502857]
[1726670322577,0.00164,59660.0,59659.0,1.173333]
[1726670322815,0.01364,59660.0,59659.0,1.173333]
[1726670323042,0.00164,59660.0,59659.0,1.173333]
[1726670323509,0.01364,59660.0,59659.0,1.173333]
[1726670323752,0.00164,59660.0,59659.0,1.173333]
[1726670323994,0.00464,59660.0,59659.0,1.173333]
[1726670324243,0.00164,59660.0,59659.0,1.173333]
[1726670325849,0.00164,59660.0,59659.0,1.174333]
[1726670326337,0.00164,59660.0,59659.0,1.173333]
[1726670327111,0.00164,59660.0,59659.0,1.174333]
[1726670327347,0.00164,59660.0,59659.0,1.173333]
[1726670327811,0.00164,59660.0,59659.0,1.174333]
[1726670328043,0.00164,59660.0,59659.0,1.509571]
[1726670328494,0.00154,59660.0,59659.0,1.509571]
[1726670329187,0.00154,59660.0,59659.0,1.90529769]
[1726670329463,0.00154,59660.0,59659.0,1.90629769]
[1726670329692,0.00144,59660.0,59659.0,1.90529769]
[1726670329957,0.00144,59660.0,59659.0,3.35599569]
[1726670330222,0.00144,59660.0,59659.0,3.81553369]
[1726670330456,0.001541,59665.0,59664.0,1.508445]
[1726670330694,0.001541,59665.0,59664.0,3.25794369]
[1726670330928,0.001541,59665.0,59664.0,2.80160169]
[1726670331157,0.001541,59665.0,59664.0,2.74981069]
[1726670331387,0.001541,59665.0,59664.0,2.58528869]
[1726670331608,0.001541,59665.0,59664.0,2.80578369]
[1726670332054,0.001541,59665.0,59664.0,2.47057369]
[1726670332267,0.001541,59665.0,59664.0,2.21799869]
[1726670332698,0.002541,59665.0,59664.0,2.21899869]
[1726670332920,0.001541,59665.0,59664.0,2.21799869]
[1726670333371,0.002541,59665.0,59664.0,2.09822265]
[1726670333590,0.001541,59665.0,59664.0,2.09722265]
[1726670334027,0.002541,59665.0,59664.0,2.09822265]
[1726670334243,0.001541,59665.0,59664.0,2.09722265]
[1726670334957,0.001441,59665.0,59664.0,2.09722265]
[1726670335635,0.002441,59665.0,59664.0,2.09822265]
[1726670335846,0.001441,59665.0,59664.0,2.09722265]
[1726670336277,0.002441,59665.0,59664.0,2.09822265]
[1726670336495,0.002441,59665.0,59664.0,3.96818265]
[1726670336722,0.002341,59665.0,59664.0,3.37653665]
[1726670337154,0.002341,59665.0,59664.0,3.37553665]
[1726670337155,0.001341,59665.0,59664.0,3.37553665]
[1726670337280,0.002341,59665.0,59664.0,3.18299165]
[1726670337501,0.002341,59665.0,59664.0,2.84699165]
[1726670337733,0.002341,59665.0,59664.0,3.18220165]
[1726670337734,0.002241,59665.0,59664.0,3.18220165]
[1726670338166,0.002241,59665.0,59664.0,3.21220165]
[1726670338587,0.002241,59665.0,59664.0,3.21120165]
[1726670338588,0.001241,59665.0,59664.0,3.21120165]
[1726670339030,0.002241,59665.0,59664.0,3.21220165]
[1726670339231,0.001241,59665.0,59664.0,3.21120165]
[1726670340027,0.002241,59665.0,59664.0,3.21220165]
[1726670340471,0.001241,59665.0,59664.0,2.87599165]
[1726670340936,0.001241,59665.0,59664.0,3.21120165]
[1726670342042,0.002241,59665.0,59664.0,3.21220165]
[1726670342257,0.002241,59665.0,59664.0,2.87699165]
[1726670342926,0.002241,59665.0,59664.0,2.87899165]
[1726670343352,0.002241,59665.0,59664.0,3.21420165]
[1726670343985,0.002241,59665.0,59664.0,3.13603204]
[1726670344453,0.002141,59665.0,59664.0,3.13603204]
[1726670345603,0.002141,59665.0,59664.0,3.13685204]
[1726670346288,0.002141,59665.0,59664.0,3.13485204]
[1726670346525,0.002141,59665.0,59664.0,2.79964204]
[1726670346775,0.002141,59665.0,59664.0,2.95489804]
[1726670347056,0.002141,59665.0,59664.0,2.69608204]
[1726670347268,0.002041,59665.0,59664.0,2.69608204]
[1726670347738,0.002041,59665.0,59664.0,2.69808204]
[1726670348450,0.001041,59665.0,59664.0,2.69708204]
[1726670348688,0.002041,59665.0,59664.0,2.69808204]
[1726670348935,0.002041,59665.0,59664.0,2.69708204]
[1726670349430,0.001642,59670.0,59669.0,0.602773]
[1726670349431,0.00154239,59670.0,59669.0,0.602773]
[1726670349688,0.00154239,59670.0,59669.0,1.92687608]
[1726670349905,0.00154239,59670.0,59669.0,3.49725708]
[1726670350128,0.8739,59693.0,59682.0,0.502663]
[1726670350129,0.005495,59683.0,59682.0,0.502663]
[1726670350357,0.5,59700.0,59699.0,0.502519]
[1726670350610,0.51096122,59700.0,59699.0,1.82611508]
[1726670351066,0.51096122,59700.0,59699.0,1.172545]
[1726670351970,0.51096122,59700.0,59699.0,0.837532]
[1726670352213,0.51196122,59700.0,59699.0,0.839532]
[1726670352433,0.51196122,59700.0,59699.0,1.174545]
[1726670353088,0.51096122,59700.0,59699.0,1.172545]
[1726670353543,0.51096122,59700.0,59699.0,1.175545]
[1726670354171,0.51096122,59700.0,59699.0,1.49410208]
[1726670354392,0.51096122,59700.0,59699.0,1.82911508]
[1726670354886,0.51096122,59700.0,59699.0,1.82611508]
[1726670355143,0.51096122,59700.0,59699.0,1.83829225]
[1726670355408,0.51096122,59700.0,59699.0,1.83629225]
[1726670355905,0.51196122,59700.0,59699.0,1.83829225]
[1726670356196,0.51096122,59700.0,59699.0,1.83629225]
[1726670356434,0.51196122,59700.0,59699.0,1.83829225]
[1726670356689,0.51196122,59700.0,59699.0,1.34577584]